[Event "Women Accentus DAQ Blitz 2022"]
[Site "Biel"]
[Date "2022.07.17"]
[Round "3.4"]
[White "Moracchini, Margaux"]
[Black "Ciarletta, Iris"]
[Result "0-1"]
[ECO "B22"]
[WhiteElo "1937"]
[BlackElo "1717"]
[Annotator "TA"]
[PlyCount "116"]
[EventDate "2022.07.17"]
[EventType "tourn"]
[EventCountry "SUI"]
[SourceTitle "playchess.com"]
[Source "ChessBase"]
[SourceQuality "1"]
[TimeControl "180+2"]

{[%evp 12,116,49,34,28,16,28,27,50,30,49,36,42,41,45,43,65,32,104,99,91,70,80,86,128,79,76,72,87,-12,-12,-8,88,3,89,-19,-25,-31,-26,-101,-81,-150,-154,-175,-122,-121,-123,-198,-105,-102,-103,-102,-24,-58,-7,-7,0,0,-7,-7,-7,-8,0,0,0,-15,-10,-31,-29,-41,0,-2,0,-22,-15,-27,0,-13,-16,-27,0,-8,-8,-15,-7,-26,-11,-355,-191,-481,-447,-414,-394,-1797,-1739,-29979,-29980,-29981,-29971,-29985,-29986,-29986,-29987,-29989,-29988,-29989,-29989]} 1. e4 {[%emt 0:00:01][%cal Be2e4,Be4e5][%mdl 32]} c5 {[%emt 0:00:00]} 2. c3 {[%emt 0:00:03]} Nf6 {[%emt 0:00:02]} 3. e5 {[%emt 0:00:01]} Nd5 {[%emt 0:00:01]} 4. Bc4 {[%emt 0:00:00]} Nb6 {[%emt 0:00:01]} 5. Bb3 {[%emt 0:00:01]} e6 {[%emt 0:00:08]} 6. Nf3 {[%emt 0:00:03]} d5 {[%emt 0:00:02]} 7. exd6 {[%emt 0:00:03]} Bxd6 {[%emt 0:00:02] B22: Sicilian: 2 c3.} 8. d4 {[%emt 0:00:27]} cxd4 {[%emt 0:00:03]} 9. Nxd4 {[%emt 0:00:04]} Bd7 {[%emt 0:00:15] Inhibits Nb5. White has an edge.} 10. O-O {[%emt 0:00:03][%cal Od4f5] [#]} (10. Nf5 $5 Be5 11. Nd6+ Bxd6 12. Qxd6 $14) 10... Nc6 $146 {[%emt 0:00:06]} ({Predecessor:} 10... Qc7 11. h3 e5 12. Qe2 O-O 13. Nb5 Bxb5 14. Qxb5 Kh8 15. Nd2 N8d7 16. Ne4 Be7 {1-0 (40) Bechtel,P-Berset,P (2235) Geneve 1994}) 11. Nb5 {[%emt 0:00:19]} Bb8 {[%emt 0:00:19]} 12. Nd6+ {[%emt 0:00:03]} Bxd6 {[%emt 0:00:02]} 13. Qxd6 {[%emt 0:00:01]} Qb8 {[%emt 0:00:04]} 14. Bf4 {[%emt 0:00:26]} e5 {[%emt 0:00:12]} (14... Qxd6 $1 $14 15. Bxd6 Na5) 15. Qxb8+ {[%emt 0:00:09]} Rxb8 {[%emt 0:00:02]} 16. Re1 {[%emt 0:00:01]} f6 {[%emt 0:00:03]} 17. Be3 {[%emt 0:00:05]} Nc8 {[%emt 0:00:06]} 18. Bc5 {[%emt 0:00:06]} (18. f4 $142) 18... b6 $16 {[%emt 0:00:04]} 19. Ba3 {[%emt 0:00:03] A strong pair of Bishops.} Na5 {[%emt 0:00:03]} 20. Nd2 {[%emt 0:00:08]} (20. f4 $1 $16) 20... Nxb3 $11 {[%emt 0:00:02]} 21. Nxb3 {[%emt 0:00:01]} Ne7 {[%emt 0:00:04]} (21... Kf7 $11) 22. Rad1 {[%emt 0:00:06]} (22. Bxe7 $16 {Black must now prevent Bd6.} Kxe7 23. f4) 22... Ba4 {[%emt 0:00:05]} (22... Ng6 $11) 23. Rd6 {[%emt 0:00:17]} (23. f4 $1 $16) 23... Nf5 {[%emt 0:00:11]} 24. Rd2 {[%emt 0:00:06]} Kf7 {[%emt 0:00:07]} (24... g5 {looks sharper.} 25. Nd4 Rd8 26. b3 Kf7) 25. Nc1 {[%emt 0:00:08]} (25. f4 $11 {remains equal.}) 25... Rhd8 {[%emt 0:00:02]} 26. Rxd8 ({White should play} 26. Nb3) 26... Rxd8 $17 {[%emt 0:00:01]} 27. b3 {[%emt 0:00:08]} Bb5 {[%emt 0:00:02]} (27... Bc6 $19 {And now ...Nh4 would win.} 28. f3 h5) 28. c4 {[%emt 0:00:01]} Bc6 {[%emt 0:00:01]} 29. Bb4 {[%emt 0:00:15] [#] Prevents Rd2.} (29. f3 $17) 29... Nd4 {[%emt 0:00:03]} (29... Nh4 $1 $19 {[%cal Rh4g2]} 30. f3 {[#]} Bxf3 $1 {[%mdl 512]} 31. gxf3 Nxf3+ 32. Kf2 Nxe1 33. Kxe1 Rd4) 30. Bc3 {[%emt 0:00:10]} Nc2 {[%emt 0:00:10]} 31. Rf1 {[%emt 0:00:01]} Be4 {[%emt 0:00:02] Black is much more active. The white rooks are badly placed.} (31... b5 $17 {Strongly threatening ...b4.} 32. f3 bxc4) 32. Ne2 {[%emt 0:00:04]} Bd3 {[%emt 0:00:01]} ({Black should try} 32... g5 $15) 33. Rd1 $11 {[%emt 0:00:02]} Ke8 {[%emt 0:00:06]} 34. Nc1 {[%emt 0:00:03]} Bf5 {[%emt 0:00:08]} 35. Rxd8+ {[%emt 0:00:01]} Kxd8 {[%emt 0:00:01][%mdl 4096] Endgame KBN-KBN} 36. h3 {[%emt 0:00:12]} Na3 {[%emt 0:00:02]} 37. Bb4 {[%emt 0:00:03]} Nc2 {[%emt 0:00:04]} 38. Bc3 {[%emt 0:00:00]} Kd7 {[%emt 0:00:04]} 39. g4 {[%emt 0:00:04]} Be4 {[%emt 0:00:03]} 40. Kf1 {[%emt 0:00:11]} Kc6 {[%emt 0:00:03]} 41. Ke2 {[%emt 0:00:02]} Nd4+ {[%emt 0:00:03]} 42. Bxd4 {[%emt 0:00:04]} (42. Ke3 $5 {[%cal Re3e4]} Bg2 43. f4 $11) 42... exd4 {[%emt 0:00:02] KB-KN} 43. f3 {[%emt 0:00:01]} Bg6 {[%emt 0:00:05]} 44. f4 {[%emt 0:00:10]} Be4 {[%emt 0:00:02]} 45. Nd3 {[%emt 0:00:04]} Bg2 {[%emt 0:00:05]} 46. Nb4+ {[%emt 0:00:03]} Kd6 {[%emt 0:00:06]} 47. h4 {[%emt 0:00:05]} Bh3 {[%emt 0:00:03]} 48. g5 {[%emt 0:00:01]} Bf5 {[%emt 0:00:02] With the idea ...fxg5.} 49. Kf3 $2 {[%emt 0:00:04][%mdl 8192] This move loses the game for White.} (49. gxf6 $11 {and White has nothing to worry.} gxf6 50. Kd2) 49... a5 {[%emt 0:00:03]} (49... fxg5 $142 50. fxg5 a5) 50. Na6 $2 {[%emt 0:00:02]} (50. gxf6 axb4 51. fxg7) 50... Bb1 $19 {[%emt 0:00:02]} 51. a3 {[%emt 0:00:01]} Ba2 {[%emt 0:00:03]} 52. b4 {[%emt 0:00:02]} (52. Ke4 Bxb3 53. Kxd4) 52... Bxc4 {[%emt 0:00:01]} 53. bxa5 {[%emt 0:00:01]} Bxa6 {[%emt 0:00:01] Black mates.} 54. axb6 {[%emt 0:00:01] KB-KP} Kd5 {[%emt 0:00:02]} 55. gxf6 {[%emt 0:00:04]} gxf6 {[%emt 0:00:01]} 56. a4 {[%emt 0:00:01]} f5 {[%emt 0:00:04]} 57. a5 {[%emt 0:00:03]} h5 {[%emt 0:00:00]} 58. Kg3 {[%emt 0:00:04]} Ke4 {[%emt 0:00:00] Weighted Error Value: White=0.58/Black=0.25 (precise)} 0-1

[Event "Women Accentus DAQ Blitz 2022"]
[Site "Biel"]
[Date "2022.07.17"]
[Round "4.1"]
[White "Cornileau, Juliette"]
[Black "Ciarletta, Iris"]
[Result "1-0"]
[ECO "D35"]
[WhiteElo "1900"]
[BlackElo "1717"]
[Annotator "TA"]
[PlyCount "85"]
[EventDate "2022.07.17"]
[EventType "tourn"]
[EventCountry "SUI"]
[SourceTitle "playchess.com"]
[Source "ChessBase"]
[SourceQuality "1"]
[TimeControl "180+2"]

{[%evp 14,85,37,29,35,32,29,27,40,39,51,34,33,25,28,19,74,59,47,37,58,38,41,13,14,0,122,6,0,0,7,-46,131,139,139,129,127,112,133,126,145,152,194,197,245,225,273,0,231,225,194,132,120,0,193,0,202,176,220,200,216,183,176,0,202,175,206,212,722,727,726,698,29997,29998]} 1. d4 {[%emt 0:00:02]} d5 {[%emt 0:00:00]} 2. c4 {[%emt 0:00:01]} e6 {[%emt 0:00:04]} 3. Nc3 {[%emt 0:00:01]} Nf6 {[%emt 0:00:01]} 4. cxd5 {[%emt 0:00:01]} exd5 {[%emt 0:00:01]} 5. Bg5 {[%emt 0:00:01]} Be7 {[%emt 0:00:02]} 6. e3 {[%emt 0:00:02]} c6 {[%emt 0:00:02]} 7. Bd3 {[%emt 0:00:01]} Be6 {[%emt 0:00:05]} 8. Qc2 {[%emt 0:00:05]} h6 {[%emt 0:00:02] D35: Queen's Gambit Declined: Exchange Variation.} 9. Bh4 {[%emt 0:00:06]} Nbd7 {[%emt 0:00:03]} 10. Nge2 {[%emt 0:00:01]} Ng4 {[%emt 0:00:23] White has an edge.} 11. Bxe7 {[%emt 0:00:08]} Qxe7 {[%emt 0:00:02] [#]} 12. h3 $146 {[%emt 0:00:16]} (12. Nf4 {is interesting.} O-O 13. O-O Qd6 14. h3) ({Predecessor:} 12. Nf4 Ngf6 13. O-O O-O 14. f3 a6 15. e4 Qb4 16. Nce2 dxe4 17. fxe4 Qb6 18. Kh1 {1-0 (33) Roubalik,J (2391)-Halbrstat,P (1570) Pardubice 2021}) 12... Ngf6 {[%emt 0:00:05]} 13. Nf4 {[%emt 0:00:10]} Nb6 {[%emt 0:00:05]} 14. O-O {[%emt 0:00:24]} Nc8 {[%emt 0:00:02]} (14... O-O $11) 15. e4 {[%emt 0:00:14] White is more active.} dxe4 {[%emt 0:00:03]} 16. Nxe4 {[%emt 0:00:02]} O-O {[%emt 0:00:10]} 17. Nc5 {[%emt 0:00:18] [#] aiming for Rfe1.} Bd5 {[%emt 0:00:07]} 18. Nxd5 {[%emt 0:00:12]} Nxd5 {[%emt 0:00:04]} 19. Rae1 {[%emt 0:00:16]} Qg5 {[%emt 0:00:17]} (19... Qc7 $11 {remains equal.}) 20. Ne4 {[%emt 0:00:21]} (20. Re5 $16 Qh4 21. g3 (21. Nxb7 Qxd4 22. Rfe1 Nb4 $16) 21... Qxd4 22. Re4) 20... Qd8 $11 {[%emt 0:00:02]} 21. Nc5 $36 {[%emt 0:00:02][%mdl 2048] Black is under pressure.} Nd6 {[%emt 0:00:02]} 22. b3 {[%emt 0:00:11]} (22. Bh7+ $11 Kh8 23. Be4) 22... Qf6 $2 {[%emt 0:00:10]} (22... b6 $15 {keeps the upper hand.} 23. Ne4 Nb4) 23. Nd7 $16 {[%emt 0:00:05][%csl LRf6,LRf8]} Qxd4 {[%emt 0:00:08]} 24. Nxf8 {[%emt 0:00:02]} Rxf8 {[%emt 0:00:01]} 25. Be4 {[%emt 0:00:22] Black must now prevent Bxd5.} Nxe4 {[%emt 0:00:08]} 26. Rxe4 {[%emt 0:00:09]} Qb6 {[%emt 0:00:03]} 27. Rfe1 {[%emt 0:00:01]} Nf6 {[%emt 0:00:04] Inhibits Re8.} 28. Re7 {[%emt 0:00:03]} Qb4 {[%emt 0:00:03]} (28... Nd5 $142) 29. Qc4 {[%emt 0:00:11]} Qa5 {[%emt 0:00:12]} 30. Qc2 $2 {[%emt 0:00:01]} (30. b4 $18 Qb6 31. a4) 30... Qb6 {[%emt 0:00:02]} (30... Qb4 $1 $11 {and Black stays safe.}) 31. Qe2 {[%emt 0:00:03]} Nd5 {[%emt 0:00:02]} 32. Rd7 {[%emt 0:00:01]} (32. Re8 $18 {Intending Rxf8+ and mate.} Qb4 33. Rxf8+ Qxf8 34. Qe8) 32... Nf6 {[%emt 0:00:09]} 33. Re7 {[%emt 0:00:02]} (33. Rd6 $16) 33... Qb4 $2 {[%emt 0:00:05]} (33... Nd5 $11) 34. Qc4 $2 {[%emt 0:00:01]} (34. Qd3 $18) 34... Qb6 $2 {[%emt 0:00:03]} (34... Qa5 $1 $11) 35. a4 $18 {[%emt 0:00:02]} Nd5 {[%emt 0:00:02]} 36. R7e5 {[%emt 0:00:02]} Qd8 {[%emt 0:00:05]} 37. Qe4 {[%emt 0:00:02]} Nf6 {[%emt 0:00:03]} 38. Qc4 {[%emt 0:00:02]} Nd5 {[%emt 0:00:04]} 39. Qe2 {[%emt 0:00:02]} Qb6 {[%emt 0:00:02]} 40. Re8 {[%emt 0:00:05]} Rxe8 {[%emt 0:00:05]} (40... Qb4 41. Qc4 a5 42. Qxb4 Nxb4) 41. Qxe8+ {[%emt 0:00:01]} Kh7 {[%emt 0:00:00]} 42. Qxf7 {[%emt 0:00:02] [#] White wants to mate with Qf5+.} Qxb3 {[%emt 0:00:05]} 43. Qf5+ {[%emt 0:00:01] Weighted Error Value: White=0.41/Black=0.77} 1-0

[Event "Women Accentus DAQ Blitz 2022"]
[Site "Biel"]
[Date "2022.07.17"]
[Round "4.2"]
[White "Tamrazyan, Gohar"]
[Black "Moracchini, Margaux"]
[Result "0-1"]
[ECO "D00"]
[WhiteElo "1916"]
[BlackElo "1937"]
[Annotator "TA"]
[PlyCount "102"]
[EventDate "2022.07.17"]
[EventType "tourn"]
[EventCountry "SUI"]
[SourceTitle "playchess.com"]
[Source "ChessBase"]
[SourceQuality "1"]
[TimeControl "180+2"]

{[%evp 9,102,1,16,0,1,-33,41,23,42,21,27,25,22,36,86,77,196,66,122,122,153,56,100,30,60,47,45,38,62,0,6,14,86,86,29994,-2,0,0,195,-62,-8,-134,-133,-133,-50,-264,-239,-357,-293,-274,-292,-1018,-1020,-1026,-1020,-1006,-1006,-892,-750,-812,-743,-1072,-1066,-1064,-1064,-1057,-974,-1037,-1048,-1060,-1041,-1053,-1002,-1308,-1322,-1238,-1217,-1160,-1119,-12658,-12389,-6360,-6249,-29984,-29985,-29985,-29986,-29987,-29985,-29985,-29986,-29986,-29987,-29989,-29990]} 1. d4 {[%emt 0:00:02]} Nf6 {[%emt 0:00:01]} 2. Nc3 {[%emt 0:00:01]} d5 {[%emt 0:00:04]} 3. Bf4 {[%emt 0:00:01]} e6 {[%emt 0:00:23]} 4. e3 {[%emt 0:00:01]} Bd6 {[%emt 0:00:18]} 5. Bxd6 {[%emt 0:00:32]} Qxd6 {[%emt 0:00:01]} 6. g4 {[%emt 0:00:08] D00: 1 d4 d5: Unusual lines.} h6 {[%emt 0:00:11]} 7. h4 {[%emt 0:00:00] [#]} Ne4 $146 {[%emt 0:00:08]} ({Better is} 7... Qb6 $15) ({Predecessor:} 7... c5 8. Bg2 cxd4 9. exd4 Nc6 10. Rh3 Qf4 11. g5 Ng8 12. Nce2 Qd6 13. Qd2 Nge7 {1-0 (45) Fries Nielsen,J (2389)-Thuesen,M (2209) Ballerup 2016}) 8. Nxe4 $14 {[%emt 0:00:32] White is slightly better.} dxe4 {[%emt 0:00:00]} 9. Bg2 {[%emt 0:00:07]} Qb4+ {[%emt 0:00:28]} 10. Kf1 {[%emt 0:00:30]} Qxb2 {[%emt 0:00:07]} 11. Bxe4 {[%emt 0:00:02]} Qb5+ {[%emt 0:00:00]} (11... e5 $14) 12. Ne2 {[%emt 0:00:20][%cal Bg1e2,Be2g3,Bg3e4][%mdl 32]} O-O {[%emt 0:00:23]} (12... Nd7 $16 {was called for.}) 13. Bd3 {[%emt 0:00:10]} ({White should play} 13. g5 $18) 13... Qc6 {[%emt 0:00:06]} (13... Qd5 $14 14. Ng3 e5) 14. Ng3 $1 $16 {[%emt 0:00:02]} Nd7 {[%emt 0:00:15]} 15. Be4 {[%emt 0:00:04]} (15. g5 $1 $16) 15... Qd6 {[%emt 0:00:07]} 16. Qf3 {[%emt 0:00:07]} (16. g5 $1 $16) 16... Nf6 {[%emt 0:00:10]} 17. g5 {[%emt 0:00:09]} Nxe4 {[%emt 0:00:05]} 18. Nxe4 {[%emt 0:00:03]} Qa6+ {[%emt 0:00:00]} 19. Qe2 {[%emt 0:00:03]} (19. Kg2 $14 e5 20. dxe5) 19... Qxe2+ {[%emt 0:00:03]} 20. Kxe2 {[%emt 0:00:01] Black must now prevent gxh6.} hxg5 {[%emt 0:00:07]} (20... Rd8 $11) 21. hxg5 {[%emt 0:00:02][%cal Oe4f6] Intending Nf6+! and mate.} b6 $2 {[%emt 0:00:03][%mdl 8192] [#]} (21... Rd8 $16) 22. Ng3 $2 {[%emt 0:00:05]} (22. Nf6+ $1 {[%mdl 512] mates} gxf6 23. gxf6 Ba6+ 24. Kd2 Bd3 25. Kxd3 Rfe8 26. Rag1+ Kf8 27. Rh8#) 22... Ba6+ {[%emt 0:00:02]} 23. Kd2 {[%emt 0:00:02]} Rad8 $2 {[%emt 0:00:02] [#]} (23... Rfd8 $11 {and Black stays safe.}) 24. Kc3 $2 {[%emt 0:00:03]} (24. Nh5 $1 $18 {[%cal Rh5f6] Threatening mate with Nf6+!} Kh7 25. Rag1) 24... Rd5 {[%emt 0:00:06]} (24... c5 $15) 25. e4 {[%emt 0:00:04]} (25. Ne4 $11 {keeps the balance.} Rfd8 26. f4) 25... Rxg5 $17 {[%emt 0:00:01]} 26. Rh3 {[%emt 0:00:09]} c5 {[%emt 0:00:01]} (26... f6 $17 {Threatens to win with ...c5.} 27. Rah1 Kf7) 27. f4 $2 {[%emt 0:00:04]} (27. Rah1 $1 $15 cxd4+ 28. Kxd4) 27... cxd4+ $19 {[%emt 0:00:02]} 28. Kxd4 {[%emt 0:00:02]} (28. Kd2 {might work better.} Rg4 29. Rah1) 28... Rd8+ {[%emt 0:00:01]} 29. Ke3 {[%emt 0:00:02]} Rc5 {[%emt 0:00:01]} 30. Rh2 {[%emt 0:00:10]} (30. f5) 30... Rc3+ {[%emt 0:00:02]} 31. Kf2 {[%emt 0:00:03]} Rd2+ {[%emt 0:00:02]} 32. Kg1 {[%emt 0:00:06]} Rxg3+ {[%emt 0:00:01]} 33. Kh1 {[%emt 0:00:00]} Rxh2+ {[%emt 0:00:03]} 34. Kxh2 {[%emt 0:00:01][%mdl 4096] Endgame KRB-KR} Re3 {[%emt 0:00:02]} 35. e5 {[%emt 0:00:02]} Re2+ {[%emt 0:00:02]} 36. Kg3 {[%emt 0:00:02]} Rxc2 {[%emt 0:00:01]} 37. a3 {[%emt 0:00:03]} Re2 {[%emt 0:00:04]} 38. Kf3 {[%emt 0:00:01]} Rb2 {[%emt 0:00:03]} 39. a4 {[%emt 0:00:03]} Bb7+ {[%emt 0:00:01]} 40. Ke3 {[%emt 0:00:02]} Rb3+ {[%emt 0:00:02]} 41. Kd4 {[%emt 0:00:02]} Rb4+ {[%emt 0:00:02]} 42. Ke3 {[%emt 0:00:00]} Re4+ {[%emt 0:00:01]} 43. Kd3 {[%emt 0:00:03]} Rxf4 {[%emt 0:00:03]} 44. a5 {[%emt 0:00:01]} b5 {[%emt 0:00:09] ( -> ...Bd5)} 45. Rc1 {[%emt 0:00:02]} Rc4 {[%emt 0:00:07]} 46. Rxc4 {[%emt 0:00:03]} bxc4+ {[%emt 0:00:01] Black mates.} 47. Kxc4 {[%emt 0:00:01] KB-KPP} g5 {[%emt 0:00:04]} 48. Kc5 {[%emt 0:00:06]} Ba6 {[%emt 0:00:01]} 49. Kd4 {[%emt 0:00:05]} Kg7 {[%emt 0:00:03]} 50. Ke4 {[%emt 0:00:01]} Kg6 {[%emt 0:00:01]} 51. Kf3 {[%emt 0:00:00]} Kf5 {[%emt 0:00:02] What a bad dream for White.  Weighted Error Value: White=1.11/Black=0.69} 0-1

[Event "Women Accentus DAQ Blitz 2022"]
[Site "Biel"]
[Date "2022.07.17"]
[Round "4.3"]
[White "Zhuang, Yongzhe"]
[Black "Sumarriva Paulin, Laura"]
[Result "0-1"]
[ECO "C01"]
[WhiteElo "1838"]
[BlackElo "1913"]
[Annotator "TA"]
[PlyCount "112"]
[EventDate "2022.07.17"]
[EventType "tourn"]
[EventCountry "SUI"]
[SourceTitle "playchess.com"]
[Source "ChessBase"]
[SourceQuality "1"]
[TimeControl "180+2"]

{[%evp 11,111,0,4,-12,-20,-22,0,-7,1,0,0,-32,-10,-17,0,-2,14,-3,-2,-8,10,0,0,0,12,0,0,0,0,-15,-10,-27,0,0,0,-16,-1,-25,-27,-24,0,-5,0,-228,-228,-244,-240,-250,-237,-249,-239,-243,-228,-241,0,0,0,0,0,-37,-11,-139,-141,-208,-206,-205,-189,-198,-192,-218,-93,-96,-18,-370,-309,-1211,-1087,-5675,-5377,-4806,-1678,-5418,-1583,-5285,-1647,-29979,-1478,-1333,0,-29979,-568,-530,-542,-524,-498,-647,-419,-567,-522,-550,-493,-29999]} 1. e4 {[%emt 0:00:03]} e6 {[%emt 0:00:00][%cal Be7e6,Be6d5][%mdl 32]} 2. d4 {[%emt 0:00:02]} d5 {[%emt 0:00:01]} 3. exd5 {[%emt 0:00:02]} exd5 {[%emt 0:00:01]} 4. Nf3 {[%emt 0:00:01]} Bd6 {[%emt 0:00:01]} 5. c4 {[%emt 0:00:02]} Nf6 {[%emt 0:00:02]} 6. Nc3 {[%emt 0:00:01]} O-O {[%emt 0:00:03]} 7. Be2 {[%emt 0:00:07] C01: French: Exchange Variation.} dxc4 {[%emt 0:00:04]} 8. Bxc4 {[%emt 0:00:02]} Bg4 {[%emt 0:00:03]} 9. O-O {[%emt 0:00:03] The position is equal.} Nbd7 {[%emt 0:00:01][%cal Bb8d7,Bd7b6,Bb6c4][%mdl 32]} 10. h3 {[%emt 0:00:02]} Bh5 {[%emt 0:00:02]} 11. Bd3 {[%emt 0:00:03]} Nb6 {[%emt 0:00:03]} 12. Bg5 {[%emt 0:00:16]} c6 {[%emt 0:00:13] [#]} 13. Bc2 $146 {[%emt 0:00:15]} ({Predecessor:} 13. Be2 Re8 14. Re1 Be7 15. Ne5 Bxe2 16. Rxe2 Nfd5 17. Bxe7 Rxe7 18. Nxd5 Qxd5 19. Nf3 {0-1 (49) Krueger,N (2106)-Plueg,A (2300) Gau Algesheim 2011}) 13... Be7 {[%emt 0:00:05]} 14. Qd3 {[%emt 0:00:05]} Bg6 {[%emt 0:00:02]} 15. Qd2 {[%emt 0:00:08]} Nc4 {[%emt 0:00:12]} 16. Qe2 {[%emt 0:00:06] Hoping for Bxg6.} Bxc2 {[%emt 0:00:22]} 17. Qxc2 {[%emt 0:00:02]} Qd7 {[%emt 0:00:11]} 18. Rad1 {[%emt 0:00:06]} Nb6 {[%emt 0:00:03]} 19. Ne5 {[%emt 0:00:04]} Qc7 {[%emt 0:00:03]} 20. Bf4 {[%emt 0:00:04][%cal Oe5g6]} Bd6 {[%emt 0:00:02]} 21. Rfe1 {[%emt 0:00:02]} Rad8 {[%emt 0:00:08]} 22. Bg5 {[%emt 0:00:02]} Be7 {[%emt 0:00:04]} 23. Qf5 {[%emt 0:00:15]} Nfd5 {[%emt 0:00:09]} 24. Bf4 {[%emt 0:00:11]} Nxf4 {[%emt 0:00:11]} 25. Qxf4 {[%emt 0:00:02]} Bf6 {[%emt 0:00:12]} 26. Ne4 {[%emt 0:00:06] Pair of Knights!} Be7 {[%emt 0:00:19]} 27. Re3 $2 {[%emt 0:00:11]} (27. Nc3 $11 {and White is okay.}) 27... Nd5 $1 $19 {[%emt 0:00:03][%csl LRe3,LRf4]} 28. Qf3 {[%emt 0:00:13]} Nxe3 {[%emt 0:00:02]} 29. fxe3 {[%emt 0:00:12]} f6 {[%emt 0:00:03]} 30. Nd3 {[%emt 0:00:02]} Bd6 {[%emt 0:00:09]} 31. Nxd6 {[%emt 0:00:08]} Qxd6 {[%emt 0:00:02]} 32. Nc5 {[%emt 0:00:02]} b6 {[%emt 0:00:03]} ({Better is} 32... Rf7 $19 {White must now prevent ...Re7.} 33. Ne4 Qe6) 33. Nb7 $11 {[%emt 0:00:02][%csl LRd6,LRd8]} Qe7 {[%emt 0:00:13]} 34. Nxd8 {[%emt 0:00:02]} Rxd8 {[%emt 0:00:01][%mdl 4096] Endgame KQR-KQR} 35. Re1 {[%emt 0:00:05]} c5 {[%emt 0:00:01]} (35... Rxd4 $5 36. Qxc6 Rd2 $15) 36. d5 {[%emt 0:00:17]} (36. Rd1 $11 {keeps the balance.}) 36... Qe5 $1 $17 {[%emt 0:00:02][%csl LRb2,LRd5]} 37. e4 {[%emt 0:00:11] [#]} (37. Rd1 $17) 37... Rxd5 $1 $19 {[%emt 0:00:14]} ({Weaker is} 37... Qxb2 38. Qb3 Qd4+ 39. Kh2) 38. Qb3 {[%emt 0:00:03]} Qd4+ {[%emt 0:00:06]} 39. Kh1 {[%emt 0:00:03]} c4 {[%emt 0:00:01][%cal Bc5c4,Bc4c3,Bc3c2][%mdl 32]} 40. Qa4 {[%emt 0:00:09][%cal Ra4e8]} Rd8 {[%emt 0:00:02] Inhibits Qe8+.} (40... b5 $19 41. Qc2 (41. Qa6 $2 Re5 $19) 41... Qd2) 41. Qxa7 $17 {[%emt 0:00:13][%cal Oe4e5]} Qxb2 {[%emt 0:00:05]} (41... b5 $17 42. Qa3 Qd6 43. Qxd6 Rxd6) 42. Qb7 {[%emt 0:00:08][%mdl 8192] Black keeps a firm grip on the game.} (42. Qc7 $11 Qd4 43. Qc6) 42... c3 {[%emt 0:00:05] And now ...Qf2 would win.} 43. Qc6 $2 {[%emt 0:00:04]} (43. Qc7 Qd2 44. Rf1) 43... c2 $19 {[%emt 0:00:04]} 44. Qe6+ {[%emt 0:00:03]} Kh8 {[%emt 0:00:02]} 45. Qc4 {[%emt 0:00:01]} h6 {[%emt 0:00:06]} (45... Qb1 $142 46. Rg1 {[#]} Qxg1+ $3 {[%mdl 512]} 47. Kxg1 Rd1+ 48. Kf2 c1=Q 49. Qxc1 Rxc1) 46. Kh2 {[%emt 0:00:05]} b5 {[%emt 0:00:04]} (46... Qe5+ $142 47. Kg1 Rd1 48. Qc8+ Kh7 49. Qxc2 Rxe1+ 50. Kf2 Rxe4) 47. Qc6 {[%emt 0:00:03]} b4 {[%emt 0:00:11]} (47... Rd1 $142 48. Qc8+ Kh7) 48. Qc7 {[%emt 0:00:02]} Rg8 {[%emt 0:00:11]} (48... Rd1 $142 49. Qc8+ Kh7 50. e5 c1=Q 51. Qf5+ Kh8 52. Rxd1 Qxd1 53. Qc8+ Kh7 54. Qf5+ Kg8 55. Qc8+ Kf7 56. Qb7+ Ke6 57. Qc8+ Kxe5 58. Qe8+ Kf5 59. Qc8+ Ke4 60. Qa8+ Qd5 61. Qa7 Qd6+ 62. Kh1 Qc1+ 63. Qg1 Qxg1+ 64. Kxg1 Qg3 65. h4 Ke3 66. h5 Ke2 67. a4 bxa3 68. Kh1 a2 69. Kg1 a1=Q#) 49. Qc4 {[%emt 0:00:03]} Rd8 {[%emt 0:00:05]} (49... Qb1 $19 50. Rg1 Rd8 51. Rxb1 cxb1=Q) 50. Qc7 $1 {[%emt 0:00:02]} Qe5+ {[%emt 0:00:01]} (50... Rd1 $142 51. Qc8+ Kh7 52. e5 c1=Q 53. Qf5+ Kh8 54. Rxd1 Qxd1 55. Qc8+ Kh7 56. Qf5+ Kg8 57. Qe6+ Kh7 58. Qf5+ Kg8 59. Qe6+ Kf8 60. Qc8+ Kf7 61. Qb7+ Kg6 62. Qe4+ f5 63. Qh4 Qxe5+ 64. Qg3+ Qxg3+ 65. Kxg3 Qf1 66. Kh2 f4 67. a4 bxa3 68. h4 a2 69. h5+ Kg5 70. g3 Qf2+ 71. Kh3 Qxg3#) 51. Qxe5 {[%emt 0:00:02]} fxe5 {[%emt 0:00:01] KR-KR} 52. Rc1 {[%emt 0:00:01]} Rc8 {[%emt 0:00:01] aiming for ...Kh7.} 53. Kg3 {[%emt 0:00:01]} Kg8 {[%emt 0:00:03]} 54. Kg4 {[%emt 0:00:01]} Kf7 {[%emt 0:00:01]} 55. Kf5 {[%emt 0:00:01]} Rc5 {[%emt 0:00:01] ...g6+ is the strong threat.} 56. g4 {[%emt 0:00:02]} (56. Kg4 $19 Kf6 57. Kh5) 56... g6# {[%emt 0:00:01] Weighted Error Value: White=1.19/Black=0.89} 0-1